Cogmind - Beta 14 @@@ ROGUE MODE // 2024.08.23 @ 00:22:43 Player: Andru7428 Result: Self-destructed Performance ------------- Evolutions (4) 2000 Regions Visited (10) 2000 Robots Destroyed (185) 925 Value Destroyed (6964) 6964 Prototype IDs (12) 240 Alien Tech Used (0) 0 Bonus (4866) 4866 TOTAL SCORE: 16995 Bonus ------- High Alert Combat Kills 225 Follower Combat Kills 1041 Entered Garrisons 600 Used RIF Installer 3000 Cogmind --------- Core Integrity 460/850 Matter 143/300 Energy 150/150 System Corruption 16% Temperature Cool (0) Movement Rolling (115) Ox1 Location -6/Factory Parts ------- > --- POWER (1) -------- Light Angular Momentum Engine > --- PROPULSION (3) --- Compact Wheel Armored Huge Wheel > --- UTILITY (9) ------ Advanced Heat Sink High-capacity Storage Unit Improved Utility Shielding Layered Light Armor Plating Hacking Suite Relay Coupler [NC] (14) Relay Coupler [Swarmer] (11) Relay Coupler [Grunt] (1) Relay Coupler [Sentry] (16) > --- WEAPON (2) ------- Neutron Cannon > --- INVENTORY (20) --- Armored Treads Medium Treads Energy Well (350) Seismic Detector Improved Weapon Shielding System Shield Relay Coupler [NC] (21) Relay Coupler [Brawler] (28) Relay Coupler [Sentry] (14) Heavy Machine Gun Heavy Machine Gun Tiamat Missile Launcher Remote Datajack Remote Datajack Plasma Cutter Ionic Axe Peak State ------------ > --- POWER ------------ Heavy Deuterium Engine > --- PROPULSION ------- Medium Treads Medium Treads Improved Medium Treads > --- UTILITY ---------- Advanced Heat Sink High-capacity Storage Unit Improved Utility Shielding Layered Light Armor Plating Hacking Suite Relay Coupler [NC] Relay Coupler [Swarmer] Relay Coupler [Grunt] Relay Coupler [Sentry] > --- WEAPON ----------- Neutron Cannon Neutron Cannon > --- INVENTORY -------- Light Angular Momentum Engine Armored Treads Medium Treads Compact Wheel Armored Huge Wheel Energy Well Seismic Detector Improved Weapon Shielding System Shield Relay Coupler [NC] Relay Coupler [Brawler] Relay Coupler [Sentry] Heavy Machine Gun Heavy Machine Gun Tiamat Missile Launcher Remote Datajack Remote Datajack Plasma Cutter Ionic Axe [Rating: 66] Favorites ----------- Power Cooled Ion Engine Engine Cooled Ion Engine Power Core Micro Nuclear Core Propulsion Light Treads Treads Light Treads Wheel Armored Wheel Utility Large Storage Unit Device Improved Cooling System Storage Large Storage Unit Processor Advanced Targeting Computer Hackware Relay Coupler [Grunt] Protection Improved Light Armor Plating Weapon Improved Assault Rifle Energy Cannon Neutron Cannon Ballistic Gun Improved Assault Rifle Launcher Tiamat Missile Launcher Special Weapon Remote Datajack Impact Weapon Power Maul Slashing Weapon Chainsword Build | -11 -10 -9 -9 -8 -8 -8 -8 -7 -7 -6 ------- Run | Yrd Mat Mat Min Mat Gar Mat Gar Fac Gar Fac Slots Evolved 8 | . . 2 . 2 . . . 2 . 2 Power . | . . . . . . . . . . . Propulsion 1 | . . . . 1 . . . . . . Utility 7 | . . 2 . 1 . . . 2 . 2 Weapon . | . . . . . . . . . . . Parts Attached 222 | 7 6 31 3 23 8 10 53 10 10 61 Power 17 | 1 1 7 1 1 . 1 1 . 1 3 Engine 15 | 1 1 6 1 1 . 1 1 . 1 2 Core 2 | . . 1 . . . . . . . 1 Reactor . | . . . . . . . . . . . Propulsion 42 | 2 . 6 . 6 2 2 9 2 1 12 Treads 37 | 2 . 6 . 6 2 2 9 2 1 7 Leg . | . . . . . . . . . . . Wheel 5 | . . . . . . . . . . 5 Hover . | . . . . . . . . . . . Flight . | . . . . . . . . . . . Utility 75 | 2 4 11 2 9 3 5 13 2 6 18 Device 19 | 1 1 4 2 3 . . 1 . 1 6 Storage 7 | 1 2 1 . 1 . . . . . 2 Processor 3 | . . 1 . 1 . . . . . 1 Hackware 9 | . . . . . . . 4 1 2 2 Protection 37 | . 1 5 . 4 3 5 8 1 3 7 Artifact . | . . . . . . . . . . . Weapon 88 | 2 1 7 . 7 3 2 30 6 2 28 Energy Gun . | . . . . . . . . . . . Energy Cannon 18 | . . . . 4 1 . . 1 . 12 Ballistic Gun 34 | 2 1 7 . 1 1 2 13 1 1 5 Ballistic Cannon . | . . . . . . . . . . . Launcher 3 | . . . . . . . . 1 . 2 Special Weapon 17 | . . . . . 1 . 9 1 . 6 Impact Weapon 1 | . . . . 1 . . . . . . Slashing Weapon 15 | . . . . 1 . . 8 2 1 3 Piercing Weapon . | . . . . . . . . . . . Special Melee Weapon . | . . . . . . . . . . . Unidentified Prototypes 12 | . . 3 1 1 . . . . . 7 Parts Lost 37 | . 1 10 . 1 4 . 6 1 1 13 Power 5 | . 1 2 . . . . . . . 2 Propulsion 12 | . . 2 . . 1 . 3 . . 6 Utility 13 | . . 4 . 1 2 . 2 . . 4 Weapon 7 | . . 2 . . 1 . 1 1 1 1 Highest Loss Streak 5 | . 1 3 . 1 2 . 2 1 1 5 To Critical Strikes . | . . . . . . . . . . . Average Slot Usage (%) 94 | . 98 84 100 100 99 100 98 98 92 91 Engine 8 | . 14 10 11 9 9 9 9 7 7 4 Treads 21 | . 28 22 22 27 27 27 27 23 23 12 Wheel 1 | . . . . . . . . . . 7 Device 5 | . 9 5 11 7 9 9 1 . 5 3 Storage 8 | . 15 11 11 9 9 9 9 7 7 6 Processor 1 | . . 2 . 7 2 . . . . 1 Hackware 12 | . . . . . . . 10 21 23 31 Protection 13 | . 1 10 22 20 24 27 23 22 8 7 Energy Cannon 4 | . . . . 6 11 1 . . 7 8 Ballistic Gun 10 | . 28 21 22 11 6 16 14 6 2 . Slashing Weapon 1 | . . . . . . . 3 5 3 1 Peak Build Rating 66 | 7 8 23 31 32 31 37 43 34 42 66 Average Rating 34 | 5 7 14 23 29 29 34 31 31 39 56 On Entrance 23 | . 7 8 23 24 31 29 36 25 34 42 Naked Turns . | . . . . . . . . . . . Heaviest Build 90 | 13 30 41 41 44 47 60 61 60 63 90 Greatest Support 86 | 40 40 43 43 63 63 63 63 68 68 86 Greatest Overweight (x) 3 | . . . . . . . 1 . . 3 Average Overweight (x) . | . . . . . . . . . . . Largest Inventory Capacity 20 | 8 15 15 15 15 15 15 15 15 15 20 Average Capacity 15 | 7 10 15 15 15 15 15 15 15 15 19 Most Carried 20 | 6 11 15 15 15 15 15 15 15 15 20 Average Carried 15 | 4 8 13 14 14 14 14 14 14 14 18 Final Capacity 20 | 8 15 15 15 15 15 15 15 15 15 20 Final Carried 16 | 6 11 15 15 14 15 15 15 14 15 16 Class Distribution -------------------- 55% | Mutant 29% | Botlord-Mutant 12% | Bothacker-Mutant Dominant Class ---------------- Mutant | -10/Materials Mutant | -9/Materials Mutant | -9/Mines Mutant | -8/Materials Mutant | -8/Garrison Mutant | -8/Materials Mutant | -8/Garrison Bothacker-Mutant | -7/Factory Bothacker-Mutant | -7/Garrison Botlord-Mutant | -6/Factory Resources | -11 -10 -9 -9 -8 -8 -8 -8 -7 -7 -6 ----------- Run | Yrd Mat Mat Min Mat Gar Mat Gar Fac Gar Fac Matter Collected 5428 | 244 400 1053 66 537 155 310 1125 103 408 1027 Remotely . | . . . . . . . . . . . Salvage Created 7193 | 17 539 1199 67 1321 813 339 924 19 296 1659 Parts 431 | 5 39 85 8 72 40 17 56 1 11 97 Haulers Intercepted 13 | . 2 4 . 4 . . . . . 3 Recyclers Shooed 1 | . . . . . . . . . . 1 Parts Field Recycled . | . . . . . . . . . . . Retrieved Matter . | . . . . . . . . . . . Parts Self-Destructed . | . . . . . . . . . . . Prevented . | . . . . . . . . . . . Kills | -11 -10 -9 -9 -8 -8 -8 -8 -7 -7 -6 ------- Run | Yrd Mat Mat Min Mat Gar Mat Gar Fac Gar Fac Combat Hostiles Destroyed 141 | . 10 28 4 19 19 6 17 2 4 32 Melee 1 | . . . . . . . . . . 1 Guns 85 | . 10 28 4 9 5 6 17 . 3 3 Cannons 44 | . . . . 9 14 . . . 1 20 AOE 10 | . . . . . . . . 2 . 8 Classes Destroyed 15 | 1 5 4 . . 2 . . . 1 2 Worker 7 | . . 1 . 1 . . . . . 5 Builder 8 | . . 1 . 4 . . . . . 3 Tunneler 2 | 1 . . . . . . . . . 1 Hauler 13 | . 2 4 . 4 . . . . . 3 Recycler 3 | . 1 . . . . . . . . 2 Operator 1 | . . . . . . . . . . 1 Watcher 10 | . 3 4 . 2 . . . . . 1 Swarmer 33 | . 3 11 4 . 4 . . 2 1 8 Grunt 60 | . 7 9 . 14 11 4 8 . . 7 Duelist 1 | . . 1 . . . . . . . . Protector 2 | . . . . . . . . . . 2 Sentry 28 | . . 7 . 5 2 2 9 . 1 2 Specialist 4 | . . . . . . . . . 2 2 Hunter 2 | . . . . . 1 . . . . 1 Programmer 11 | . . . . . 1 . . . . 10 Best Kill Streak 7 | 1 7 7 4 6 3 3 3 2 3 6 Combat Bots Only 7 | . 7 7 4 5 3 3 3 2 3 5 Max Kills in Single Turn 4 | 1 2 2 1 2 1 1 1 1 1 4 Gunslinging 1 | . 1 1 . . . . . . . . Exploded 3 | . . . . . . . . 1 . 3 Melee 1 | . . . . . . . . . . 1 Uniques/NPCs Destroyed . | . . . . . . . . . . . Combat | -11 -10 -9 -9 -8 -8 -8 -8 -7 -7 -6 -------- Run | Yrd Mat Mat Min Mat Gar Mat Gar Fac Gar Fac Hostile Shots Fired 1151 | . 55 162 8 92 105 33 174 20 147 355 Missed 372 | . 8 44 . 29 30 17 57 5 54 128 Damage Taken 11449 | . 509 1492 56 1064 1005 232 1779 220 856 4236 Core 1090 | . 97 145 . 76 94 13 155 52 68 390 Absorbed by Shields . | . . . . . . . . . . . Redirected to Shielding 74 | . . . . . . . . . . 74 Ignored by Resistances 101 | . . . . . . . 42 23 36 . Core Remaining (%) 68 | 100 61 . 63 . . . 38 . 82 . Volleys Fired 664 | 1 52 110 5 84 68 27 128 11 26 152 Largest 2 | 2 2 2 2 2 2 2 2 2 2 2 Hottest 180 | 40 40 46 46 136 136 50 50 93 93 180 Shots Fired 1145 | 2 104 220 9 168 125 54 185 16 40 222 Gun 737 | 2 104 220 9 104 27 54 171 6 13 27 Cannon 366 | . . . . 64 98 . . 4 27 173 Launcher 8 | . . . . . . . . 2 . 6 Special 34 | . . . . . . . 14 4 . 16 Kinetic 737 | 2 104 220 9 104 27 54 171 6 13 27 Thermal 366 | . . . . 64 98 . . 4 27 173 Explosive 8 | . . . . . . . . 2 . 6 Electromagnetic . | . . . . . . . . . . . Robot Hit Streak 33 | 1 10 11 11 33 11 5 14 11 15 12 Robot Miss Streak 7 | 1 6 2 1 4 3 2 5 3 2 7 Penetration Max 1 | . . . . . . . . . 1 . Secondary Targets 14 | . 4 5 2 1 . 1 1 . . . Max Gunslinging Chain 1 | . 1 1 1 1 . 1 1 . . . Shots Hit Robots 758 | 1 63 160 7 135 75 37 130 10 27 113 Core Hits 293 | 1 25 54 4 52 33 16 32 4 9 63 Critical Kills 2 | . . 1 . 1 . . . . . . Critical Parts Destroyed 6 | . . 1 . 1 1 . 1 1 1 . Critical Strikes 9 | . . 3 . 2 1 . 1 1 1 . Meltdown 1 | . . . . 1 . . . . . . Destroy 8 | . . 3 . 1 1 . 1 1 1 . Melee Attacks 58 | . . . . 2 . . 16 7 6 27 Impact 1 | . . . . 1 . . . . . . Slashing 57 | . . . . 1 . . 16 7 6 27 Piercing . | . . . . . . . . . . . Sneak Attacks 6 | . . . . . . . . . . 6 Combat Hostiles . | . . . . . . . . . . . Follow-up Attacks . | . . . . . . . . . . . Damage Inflicted 17789 | 12 785 2395 103 2438 1477 639 2098 332 872 6638 Guns 8372 | 12 782 2389 103 1347 213 622 2098 97 269 440 Cannons 5945 | . . . . 1085 1264 . . 65 301 3230 Explosions 2649 | . . . . . . . . 170 . 2479 Melee 754 | . . . . . . . . . 302 452 Ramming 69 | . 3 6 . 6 . 17 . . . 37 Kinetic 8372 | 12 782 2389 103 1347 213 622 2098 97 269 440 Thermal 6895 | . . . . 1085 1264 . . 65 301 4180 Explosive 1699 | . . . . . . . . 170 . 1529 Electromagnetic . | . . . . . . . . . . . Impact . | . . . . . . . . . . . Slashing 754 | . . . . . . . . . 302 452 Piercing . | . . . . . . . . . . . Highest Corruption 16 | . . 1 1 . 1 1 1 1 1 16 Average Corruption 4 | . . 1 1 . 1 1 1 1 1 10 Corruption Purged . | . . . . . . . . . . . Corruption Blocked . | . . . . . . . . . . . Effects 173 | . . 1 5 . 8 1 9 1 18 130 Message Errors 34 | . . . 1 . . . 4 1 4 24 Matter Fused 44 | . . . 1 . 1 . 1 . 5 36 Heat Flow Errors 23 | . . 1 . . 1 . 1 . 3 17 Energy Discharges 29 | . . . 1 . 2 1 1 . 1 23 Parts Rejected 4 | . . . . . . . . . . 4 Parts Fused 2 | . . . . . . . . . 1 1 Data Loss (minor) 14 | . . . . . 2 . 1 . 1 10 Data Loss (major) 7 | . . . . . 1 . . . 1 5 Misfires 8 | . . . . . 1 . 1 . 1 5 Alerts 3 | . . . 1 . . . . . 1 1 Misdirections 1 | . . . . . . . . . . 1 Weapon Failures 4 | . . . 1 . . . . . . 3 Overload Shots . | . . . . . . . . . . . Overflow Damage 402 | . . . . 1 15 . . 5 17 364 Projectiles 166 | . . . . 1 15 . . 5 . 145 Explosions 71 | . . . . . . . . . . 71 Melee 165 | . . . . . . . . . 17 148 Knockbacks 2 | . . . . . . . . . . 2 Impact 2 | . . . . . . . . . . 2 Kinetic . | . . . . . . . . . . . Secondary . | . . . . . . . . . . . Self-Inflicted Damage 118 | . . . . . . . . . . 118 Shots 3 | . . . . . . . . . . 3 Rammed 11 | . 2 2 . 1 . 1 . . . 5 Targets Rammed 14 | . 3 2 . 1 . 1 . . . 7 Kicked . | . . . . . . . . . . . Crushed 3 | . 1 . . . . . . . . 2 Highest Temperature 341 | . 27 96 . 189 243 7 221 192 193 341 Average Temperature 62 | . 14 11 . 38 41 7 47 76 59 83 Received Heat Transfer 3585 | . 222 513 . 558 450 126 765 . 261 690 Effects 6 | . . . . . . . 2 . . 4 Energy Bleed 1 | . . . . . . . . . . 1 Interference 4 | . . . . . . . 2 . . 2 Matter Decay 1 | . . . . . . . . . . 1 Siege Activations . | . . . . . . . . . . . Robots Corrupted . | . . . . . . . . . . . Combat Hostiles . | . . . . . . . . . . . Parts Fried . | . . . . . . . . . . . Impact Corruptions . | . . . . . . . . . . . Robots Melted 1 | . . . . 1 . . . . . . Combat Hostiles 1 | . . . . 1 . . . . . . Parts Melted 10 | . . . . 6 3 . . . 1 . Heat Transferred 5713 | . . . . 1961 2140 . . 74 407 1131 Parts Sabotaged . | . . . . . . . . . . . Parts Stolen . | . . . . . . . . . . . Parts Stripped . | . . . . . . . . . . . Power Chain Reactions 4 | . . . . . . . . . . 4 Alert | -11 -10 -9 -9 -8 -8 -8 -8 -7 -7 -6 ------- Run | Yrd Mat Mat Min Mat Gar Mat Gar Fac Gar Fac Peak Influence 743 | 5 239 476 104 335 730 355 699 394 743 549 Initial 389 | . 3 . 75 . 46 355 55 366 56 389 Average 239 | 1 73 164 59 86 412 236 304 209 477 251 Maximum Alert Level 3 | . 1 2 . 1 3 1 2 1 3 2 Low Security (%) 49 | 100 87 68 100 84 21 28 41 51 21 30 Level 1 31 | . 12 26 . 15 29 71 34 48 5 58 Level 2 17 | . . 4 . . 39 . 24 . 67 11 Level 3 1 | . . . . . 10 . . . 5 . Level 4 . | . . . . . . . . . . . Level 5 . | . . . . . . . . . . . High Security . | . . . . . . . . . . . Max Security . | . . . . . . . . . . . Squads Dispatched 27 | . 4 3 . 4 . 2 . 1 . 13 Investigation 4 | . 1 1 . 1 . . . . . 1 Extermination 8 | . . . . . . . . . . 8 Reinforcement 10 | . 3 2 . 2 . 1 . . . 2 Assault 2 | . . . . . . . . . . 2 Garrison 3 | . . . . 1 . 1 . 1 . . Intercept . | . . . . . . . . . . . Searches Triggered . | . . . . . . . . . . . Construction Impeded . | . . . . . . . . . . . Haulers Reinforced . | . . . . . . . . . . . Active Scanning Responses . | . . . . . . . . . . . Cargo Convoy Interrupts 1 | . . . . . . . . . . 1 Alert ID Control Effect 4 | . . . . . . . . . . 4 Stealth | -11 -10 -9 -9 -8 -8 -8 -8 -7 -7 -6 --------- Run | Yrd Mat Mat Min Mat Gar Mat Gar Fac Gar Fac Distress Signals 12 | . 3 3 . 1 . 2 3 . . . Communications Jammed 144 | . . . . . . . . . . 144 Distress Signals 144 | . . . . . . . . . . 144 Times Spotted 263 | . 18 51 4 33 21 13 26 4 13 80 Peak Tracking Total 6 | . 5 6 4 5 5 5 5 3 5 6 Tactical Retreats 19 | . 1 6 . 3 4 1 . . . 4 Traps | -11 -10 -9 -9 -8 -8 -8 -8 -7 -7 -6 ------- Run | Yrd Mat Mat Min Mat Gar Mat Gar Fac Gar Fac Traps Triggered 15 | . 1 3 . . . . 1 1 2 7 Indirectly . | . . . . . . . . . . . Trap Hack Attempts . | . . . . . . . . . . . Triggered . | . . . . . . . . . . . Disarmed . | . . . . . . . . . . . Reprogrammed . | . . . . . . . . . . . Reused . | . . . . . . . . . . . Traps Extracted . | . . . . . . . . . . . Installed . | . . . . . . . . . . . Triggered 3 | . . . . . . . . . . 3 Machines | -11 -10 -9 -9 -8 -8 -8 -8 -7 -7 -6 ---------- Run | Yrd Mat Mat Min Mat Gar Mat Gar Fac Gar Fac Machines Disabled 10 | . . . . . 2 . 3 1 2 2 Max in Single Turn 1 | . . . . . 1 . 1 1 1 1 Garrison Access 1 | . . . . . . . . . . 1 Garrison Relay 4 | . . . . . 1 . 2 . 1 . Machines Repaired . | . . . . . . . . . . . Machines Dismantled 1 | . . . . . 1 . . . . . Machines Sabotaged . | . . . . . . . . . . . Overloaded Fab Kills . | . . . . . . . . . . . Hacking | -11 -10 -9 -9 -8 -8 -8 -8 -7 -7 -6 --------- Run | Yrd Mat Mat Min Mat Gar Mat Gar Fac Gar Fac Machines Accessed 42 | . 5 9 1 7 2 4 3 3 1 7 Terminals 37 | . 4 9 . 6 2 3 3 2 1 7 Fabricators . | . . . . . . . . . . . Repair Stations . | . . . . . . . . . . . Recycling Units 1 | . 1 . . . . . . . . . Scanalyzers . | . . . . . . . . . . . Garrison Access 3 | . . . . 1 . 1 . 1 . . Total Hacks 101 | . 11 28 1 17 2 11 5 7 1 18 Successful 51 | . 6 11 1 12 1 6 3 3 1 7 Failed 50 | . 5 17 . 5 1 5 2 4 . 11 Catastrophic 12 | . 1 2 . 3 1 . 1 1 . 3 Database Lockouts . | . . . . . . . . . . . Manual 61 | . 10 14 . 9 . 9 . 6 . 13 Terminals 95 | . 10 28 . 16 2 10 5 5 1 18 Fabricators . | . . . . . . . . . . . Repair Stations . | . . . . . . . . . . . Recycling Units 1 | . 1 . . . . . . . . . Scanalyzers . | . . . . . . . . . . . Garrison Access 4 | . . . . 1 . 1 . 2 . . Terminal Hacks 31 | . 4 8 1 7 1 3 3 . 1 3 Robot Analysis 1 | . . 1 . . . . . . . . Open Door 1 | . . . 1 . . . . . . . Emergency Access Points 3 | . . . . . 1 . 1 . 1 . Terminal Index 1 | . . . . 1 . . . . . . Alert Level 3 | . 1 1 . 1 . . . . . . Unreport Threat 10 | . 1 2 . 3 . 2 . . . 2 Locate Traps 6 | . 1 3 . 1 . . . . . 1 Recall Investigation 1 | . . . . 1 . . . . . . Recall Reinforcements 1 | . 1 . . . . . . . . . Hauler Manifests 1 | . . . . . . 1 . . . . Zone Layout 1 | . . 1 . . . . . . . . Garrison Registry 1 | . . . . . . . 1 . . . Security Stations 1 | . . . . . . . 1 . . . Fabricator Hacks . | . . . . . . . . . . . Repair Station Hacks . | . . . . . . . . . . . Recycling Unit Hacks . | . . . . . . . . . . . Scanalyzer . | . . . . . . . . . . . Garrison Access Hacks 3 | . . . . 1 . 1 . 1 . . Unlock Access 3 | . . . . 1 . 1 . 1 . . Unauthorized Hacks 17 | . 2 3 . 4 . 2 . 2 . 4 Terminals 16 | . 1 3 . 4 . 2 . 2 . 4 Assimilate 1 | . . . . . . 1 . . . . Botnet 15 | . 1 3 . 4 . 1 . 2 . 4 Fabricators . | . . . . . . . . . . . Repair Stations . | . . . . . . . . . . . Recycling Units 1 | . 1 . . . . . . . . . Tunnel 1 | . 1 . . . . . . . . . Scanalyzers . | . . . . . . . . . . . Garrison Access . | . . . . . . . . . . . Data Cores Recovered 1 | . . . . . . . . . . 1 Used . | . . . . . . . . . . . Hacking Detections 38 | . 4 9 . 7 2 3 3 3 . 7 Full Trace Events 3 | . . . . 1 . . 1 . . 1 Feedback Events . | . . . . . . . . . . . Feedback Blocked . | . . . . . . . . . . . Robot Schematics Acquired . | . . . . . . . . . . . Robots Built . | . . . . . . . . . . . Authchips . | . . . . . . . . . . . Time . | . . . . . . . . . . . Total Robot Build Rating . | . . . . . . . . . . . Part Schematics Acquired . | . . . . . . . . . . . Parts Built . | . . . . . . . . . . . Authchips . | . . . . . . . . . . . Time . | . . . . . . . . . . . Total Part Build Rating . | . . . . . . . . . . . Parts Repaired . | . . . . . . . . . . . Time . | . . . . . . . . . . . Parts Recycled . | . . . . . . . . . . . Recycled Matter . | . . . . . . . . . . . Retrieved Matter . | . . . . . . . . . . . Retrieved Components . | . . . . . . . . . . . Parts Scanalyzed . | . . . . . . . . . . . Part Schematics Acquired . | . . . . . . . . . . . Parts Damaged . | . . . . . . . . . . . Bothacking | -11 -10 -9 -9 -8 -8 -8 -8 -7 -7 -6 ------------ Run | Yrd Mat Mat Min Mat Gar Mat Gar Fac Gar Fac Used RIF Installer 6 | . . . . . 2 . 2 . 2 . Hotswap 1 | . . . . . 1 . . . . . Threat Obfuscator 1 | . . . . . . . . . 1 . Signal Jammer 1 | . . . . . . . 1 . . . Robot Detection 1 | . . . . . . . . . 1 . Alert ID Control 1 | . . . . . . . 1 . . . Robots Hacked 17 | . . . . . . . 7 1 . 9 Non-combat 3 | . . . . . . . . 1 . 2 Combat 14 | . . . . . . . 7 . . 7 Robot Hacks Applied 23 | . . . . . . . 10 3 . 10 drop_inventory 1 | . . . . . . . . . . 1 purge_threat 2 | . . . . . . . . 2 . . block_reporting 1 | . . . . . . . . 1 . . map_route 1 | . . . . . . . . . . 1 scatter_targeting 3 | . . . . . . . 3 . . . overload_power 1 | . . . . . . . . . . 1 disable_weapons 2 | . . . . . . . 1 . . 1 overwrite_iff 11 | . . . . . . . 6 . . 5 formatsys_high 1 | . . . . . . . . . . 1 Relay Couplers Released 17 | . . . . . 6 . 6 . 3 2 Machine Destruction 14 | . . . . . 3 . 6 . 3 2 Programmers 3 | . . . . . 3 . . . . . Attached 7 | . . . . . . . 4 . 2 1 Fabnet Peak Effective % . | . . . . . . . . . . . Robots Rewired 6 | . . . . . . . . . 6 . Allies Hacked 1 | . . . . . . . . . . 1 Hacks Repelled . | . . . . . . . . . . . Allies | -11 -10 -9 -9 -8 -8 -8 -8 -7 -7 -6 -------- Run | Yrd Mat Mat Min Mat Gar Mat Gar Fac Gar Fac Total Allies 22 | . . . 4 . 1 1 5 . 6 5 Largest Group 6 | . . . 4 4 1 1 1 . 6 2 Highest-Rated Group 214 | . . . 71 71 25 10 29 . 214 83 Highest-Rated Ally 43 | . . . 31 31 25 10 29 . 43 43 Total Orders 18 | . . . 3 . . . . . 12 3 STAY 9 | . . . 2 . . . . . 5 2 FOLLOW 8 | . . . 1 . . . . . 6 1 AID 1 | . . . . . . . . . 1 . Ally Attacks 191 | . . . . 57 . . 19 . 76 39 Total Damage 3689 | . . . . 667 . . 305 . 1978 739 Kills 34 | . . . . 5 . . 1 . 20 8 Allies Corrupted . | . . . . . . . . . . . Allies Melted 2 | . . . . 1 . . . . . 1 Intel | -11 -10 -9 -9 -8 -8 -8 -8 -7 -7 -6 ------- Run | Yrd Mat Mat Min Mat Gar Mat Gar Fac Gar Fac Robot Analysis Total 1 | . . 1 . . . . . . . . Derelict Logs Recovered 3 | . . . 3 . . . . . . . Drone Launches . | . . . . . . . . . . . Drone Recoveries . | . . . . . . . . . . . Exploration | -11 -10 -9 -9 -8 -8 -8 -8 -7 -7 -6 ------------- Run | Yrd Mat Mat Min Mat Gar Mat Gar Fac Gar Fac Turns Passed 16543 | 96 1340 1915 1028 1756 1551 515 1399 555 1909 4479 Spaces Moved 8451 | 52 703 851 520 862 804 250 586 299 1090 2434 Core 5 | 5 . . . . . . . . . . Treads 7451 | 47 703 851 520 862 804 250 586 299 1090 1439 Legs . | . . . . . . . . . . . Wheels 995 | . . . . . . . . . . 995 Hover . | . . . . . . . . . . . Flight . | . . . . . . . . . . . Fastest Speed 50 | 50 160 160 160 160 160 160 160 160 160 105 Average Speed 157 | 149 160 160 160 160 160 162 161 160 160 150 Slowest Speed 245 | 160 160 160 160 160 160 163 240 160 160 245 Overloaded Moves . | . . . . . . . . . . . Propulsion Burnouts . | . . . . . . . . . . . Robots Hopped . | . . . . . . . . . . . Cave-ins Triggered . | . . . . . . . . . . . Exploration Rate (%) 57 | 5 95 74 95 64 73 32 57 13 66 59 Regions Visited 10 Branch Regions 1 Pre-discovered Areas 1 | . 1 . . . . . . . . . Known Exits Taken 3 | . . . . 1 . 1 . 1 . . Unknown Exits Taken 4 | 1 1 1 1 . . . . . . . Scrap Searched 1 | . . . 1 . . . . . . . Spaces Dug 55 | . . . . 2 . . 1 13 . 39 Terrain Destroyed 208 | . . . . 2 . . 1 25 . 180 Melee 30 | . . . . 2 . . 1 7 . 20 Projectile 61 | . . . . . . . . 1 . 60 AOE 117 | . . . . . . . . 17 . 100 Terrain Rammed . | . . . . . . . . . . . Walls Destroyed . | . . . . . . . . . . . Machines Disabled . | . . . . . . . . . . . Actions | -11 -10 -9 -9 -8 -8 -8 -8 -7 -7 -6 --------- Run | Yrd Mat Mat Min Mat Gar Mat Gar Fac Gar Fac Total 10474 | 65 819 1198 708 1065 932 319 854 351 1207 2956 Wait 794 | . 32 154 173 78 30 15 57 20 40 195 Move 8443 | 51 702 850 519 862 803 250 585 298 1089 2434 Hop . | . . . . . . . . . . . Pick Up 112 | 6 13 23 4 3 9 3 5 2 2 42 Fast Attach 53 | 7 1 9 . 4 . 3 3 2 2 22 Attach 39 | . 1 8 . 3 4 . 6 1 1 15 Detach 15 | . 1 3 . 1 . . 1 . . 9 Swap 130 | . 4 14 3 16 4 7 44 7 7 24 Drop 116 | . 10 25 4 11 6 13 9 3 7 28 Fire 664 | 1 52 110 5 84 68 27 128 11 26 152 Melee 58 | . . . . 2 . . 16 7 6 27 Ram 2 | . . . . . . . . . . 2 Kick . | . . . . . . . . . . . Crush 12 | . 3 2 . 1 . 1 . . . 5 Escape Stasis . | . . . . . . . . . . . Rewire 28 | . . . . . . . . . 27 1 Trap . | . . . . . . . . . . . Miscellaneous 8 | . . . . . 8 . . . . . Route ------- -11/Scrapyard -10/Materials (discovered 4 exits: *Mat x3 / [*Min]) -9/Materials (discovered 4 exits: *Mat x2 / *Min x2) -9/Mines (discovered 3 exits: *Mat x2 / [*Zio]) -8/Materials (discovered 3 exits: *Fac x2 / Gar) -8/Garrison (discovered 3 exits: *Mat x3) -8/Materials (discovered 2 exits: *Fac / Gar) -8/Garrison (discovered 3 exits: *Fac x3) -7/Factory (discovered 2 exits: [*Sto] / Gar) -7/Garrison (discovered 2 exits: *Fac x2) -6/Factory (discovered 1 exit: [*Low]) History --------- Turn | Location | Event 23 | -11/Scrapyard | Discovered new exit (range 14) 97 | -11/Scrapyard | Entered Materials 307 | -10/Materials | Build established: Mutant 352 | -10/Materials | Destroyed 7 combat bots 529 | -10/Materials | Discovered new exit (range 14) 990 | -10/Materials | Discovered new exit (range 16) 1161 | -10/Materials | Discovered new exit (range 16) 1319 | -10/Materials | Discovered new exit (range 15) 1437 | -10/Materials | Entered another Materials area 1437 | -9/Materials | Evolved 2 slots: Utility x2 1920 | -9/Materials | Discovered new exit (range 9) 2054 | -9/Materials | Lost 3 parts (1p1n1u) 2058 | -9/Materials | Destroyed 7 combat bots 2384 | -9/Materials | Discovered new exit (range 16) 2784 | -9/Materials | Discovered new exit (range 13) 3123 | -9/Materials | Discovered new exit (range 3) 3352 | -9/Materials | Entered Mines 3381 | -9/Mines | Assisted by bots powering up and referring to "LRC-V3" 3477 | -9/Mines | Learned Materials emergency access door positions 3576 | -9/Mines | Found a damaged Exp. Sensor Array with a note attached 3582 | -9/Mines | Found Prototype Device 3583 | -9/Mines | Identified Exp. Sensor Array 3658 | -9/Mines | Learned Materials security intel 3797 | -9/Mines | Discovered new exit (range 12) 3945 | -9/Mines | Met a Derelict who couldn't figure out how to use a Trap Extractor 4174 | -9/Mines | Discovered new exit (range 6) 4256 | -9/Mines | Learned Materials emergency access door positions 4260 | -9/Mines | A Derelict revealed a hidden shortcut to a safe place 4374 | -9/Mines | Received a Mining Laser from a helpful Derelict 4380 | -9/Mines | Entered Materials 4380 | -8/Materials | Accompanied by 4 allies 4380 | -8/Materials | Evolved 2 slots: Propulsion x1, Utility x1 4622 | -8/Materials | Lost 4 allies 4687 | -8/Materials | Discovered new exit (range 3) 5569 | -8/Materials | Discovered new exit (range 15) 6090 | -8/Materials | Garrison activated, responded to threat 6136 | -8/Materials | Identified exit to Garrison 6136 | -8/Materials | Entered Garrison 6216 | -8/Garrison | Installed Relay Interface Framework 6698 | -8/Garrison | Discovered new exit (range 14) 6804 | -8/Garrison | Triggered checkpoint 6877 | -8/Garrison | Discovered new exit (range 10) 6938 | -8/Garrison | Rescued a captive Derelict 6946 | -8/Garrison | Triggered checkpoint 7147 | -8/Garrison | Triggered checkpoint 7340 | -8/Garrison | Discovered new exit (range 11) 7354 | -8/Garrison | Expanded RIF knowledge: Hotswap 7527 | -8/Garrison | Garrison Relay disabled 7687 | -8/Garrison | Entered Materials 8068 | -8/Materials | Discovered new exit (range 5) 8181 | -8/Materials | Garrison activated, responded to threat 8202 | -8/Materials | Identified exit to Garrison 8202 | -8/Materials | Entered Garrison 8279 | -8/Garrison | Discovered new exit (range 37) 8279 | -8/Garrison | Discovered new exit (range 69) 8279 | -8/Garrison | Discovered new exit (range 50) 8479 | -8/Garrison | Triggered checkpoint 8486 | -8/Garrison | Triggered checkpoint 8645 | -8/Garrison | Expanded RIF knowledge: Signal Jamming 8850 | -8/Garrison | Triggered checkpoint 8867 | -8/Garrison | Learned Factory security intel 9265 | -8/Garrison | Garrison Relay disabled 9293 | -8/Garrison | Triggered checkpoint 9294 | -8/Garrison | Core integrity fell below 50% 9474 | -8/Garrison | Build established: Scavenger-Mutant 9507 | -8/Garrison | Expanded RIF knowledge: Alert ID Control 9532 | -8/Garrison | Garrison Relay disabled 9601 | -8/Garrison | Entered Factory 9601 | -7/Factory | Evolved 2 slots: Utility x2 9821 | -7/Factory | Build established: Bothacker-Mutant 9948 | -7/Factory | Discovered new exit (range 8) 10052 | -7/Factory | Identified exit to Garrison 10096 | -7/Factory | Garrison activated, responded to threat 10156 | -7/Factory | Entered Garrison 10278 | -7/Garrison | Expanded RIF knowledge: Threat Obfuscation 10550 | -7/Garrison | Triggered checkpoint 10560 | -7/Garrison | Triggered checkpoint 10664 | -7/Garrison | Triggered checkpoint 10668 | -7/Garrison | Triggered checkpoint 11031 | -7/Garrison | Garrison Relay disabled 11131 | -7/Garrison | Discovered new exit (range 15) 11413 | -7/Garrison | Discovered new exit (range 14) 11647 | -7/Garrison | Expanded RIF knowledge: Robot Detection 11959 | -7/Garrison | Build established: Botlord-Mutant 12065 | -7/Garrison | Entered Factory 12065 | -6/Factory | Accompanied by 2 allies 12065 | -6/Factory | Evolved 2 slots: Utility x2 13429 | -6/Factory | Cargo convoy interrupted 13429 | -6/Factory | Discovered new exit (range 21) 13653 | -6/Factory | System corruption reached 10% 13755 | -6/Factory | Lost 5 parts (1p3n1u) 13763 | -6/Factory | P-60 Hacker assimilated allied G-50 Soldier 16265 | -6/Factory | First assault squad dispatched 16388 | -6/Factory | Lost 5 parts (1p3n1w) 16544 | -6/Factory | Self-destructed Last Messages --------------- 16364_ M-13 Machinist repairs G-67 Veteran. 16386_ System corrupted: Matter fused (-9). 16387_ Triggered Shock Trap. 16387_ The floor emits a surge of raw power. 16387_ System corrupted (+2). 16388_ W-25 Informer distress signal jammed. 16402_ System corrupted: Imp. Utility Shielding rejected. 16402_ Acquired Imp. Utility Shielding. 16402_ W-25 Informer distress signal jammed. 16417_ System corrupted: FCS attempts to trigger Neutron Cannon. 16417_ System corrupted: Neutron Cannon misfires. 16443_ System corrupted: Energy discharge (-51). 16458_ 9